Cogmind - Beta 17 @@@ ROGUE MODE // 2026.07.16 @ 10:24:12 Player: IsAway Result: Destroyed by Y-45 Defender with Beam Rifle Performance ------------- Evolutions (1) 500 Regions Visited (3) 600 Robots Destroyed (43) 215 Value Destroyed (960) 960 Prototype IDs (4) 80 Alien Tech Used (0) 0 Bonus (0) 0 TOTAL SCORE: 2355 Bonus ------- None Cogmind --------- Core Integrity 0/400 Matter 149/300 Energy 280/280 System Corruption 25% Temperature Cool (12) Movement Walking (105) Location -9/Materials Parts ------- > --- POWER (1) -------- Heavy Ion Engine > --- PROPULSION (4) --- Aluminum Leg Aluminum Leg Aluminum Leg > --- UTILITY (2) ------ Small Storage Unit Hacking Suite > --- WEAPON (2) ------- Light Assault Rifle Light Assault Rifle > --- INVENTORY (8) ---- Improved Ion Engine Heavy Ion Engine Aluminum Leg Armored Wheel Weight Redist. System EMP Blaster Mining Laser Peak State ------------ > --- POWER ------------ Light Ion Engine > --- PROPULSION ------- Flight Unit Flight Unit Flight Unit Flight Unit > --- UTILITY ---------- Small Storage Unit Improved Targeting Computer > --- WEAPON ----------- Improved EM Shotgun Improved EM Shotgun > --- INVENTORY -------- Light Ion Engine Light Ion Engine Hover Unit Small Storage Unit Improved Targeting Computer Improved EM Shotgun Mining Laser [Rating: 15] Favorites ----------- Power Light Ion Engine Engine Light Ion Engine Propulsion Aluminum Leg Treads Light Treads Leg Aluminum Leg Wheel Compact Wheel Flight Unit Flight Unit Utility Small Storage Unit Storage Small Storage Unit Processor Improved Targeting Computer Hackware Hacking Suite Weapon Light Assault Rifle Energy Gun Improved EM Shotgun Ballistic Gun Light Assault Rifle Launcher EMP Blaster Special Weapon Mining Laser Build | -11 -10 -10 -9 ------- Run | Yrd Mat Min Mat Slots Evolved 2 | . . . 2 Power . | . . . . Propulsion 2 | . . . 2 Utility . | . . . . Weapon . | . . . . Parts Attached 45 | 8 7 1 29 Power 8 | 2 1 . 5 Engine 8 | 2 1 . 5 Core . | . . . . Reactor . | . . . . Propulsion 15 | 3 2 1 9 Treads 2 | 2 . . . Leg 8 | . . . 8 Wheel 1 | 1 . . . Hover . | . . . . Flight 4 | . 2 1 1 Utility 5 | 1 1 . 3 Device . | . . . . Storage 2 | 1 . . 1 Processor 2 | . 1 . 1 Hackware 1 | . . . 1 Protection . | . . . . Artifact . | . . . . Weapon 17 | 2 3 . 12 Energy Gun 8 | . 2 . 6 Energy Cannon . | . . . . Ballistic Gun 7 | 2 1 . 4 Ballistic Cannon . | . . . . Launcher 1 | . . . 1 Special Weapon 1 | . . . 1 Impact Weapon . | . . . . Slashing Weapon . | . . . . Piercing Weapon . | . . . . Special Melee Weapon . | . . . . Unidentified Prototypes 2 | . 2 . . Corrupted Parts 4 | . . . 4 System Corruption 22 | . . . 22 Parts Lost 18 | . . . 18 Power 3 | . . . 3 Propulsion 9 | . . . 9 Utility 1 | . . . 1 Weapon 5 | . . . 5 Highest Loss Streak 7 | . . . 7 To Critical Strikes . | . . . . Average Backups 7 | 3 7 8 7 Power 1 | . 1 2 1 Propulsion 2 | 1 3 2 2 Utility 1 | . . 1 2 Weapon 2 | 1 2 3 2 Tool/Special . | . . . . Unused Backups 15 | . 4 . 11 Power 3 | . . . 3 Propulsion 8 | . 3 . 5 Utility 2 | . . . 2 Weapon 2 | . 1 . 1 Tool/Special . | . . . . Average Slot Usage (%) 89 | . 71 71 93 Engine 8 | . 7 . 9 Treads 1 | . 8 . . Leg 25 | . . . 31 Flight 11 | . 18 28 9 Storage 11 | . 14 14 11 Processor 8 | . 5 14 8 Hackware 1 | . . . 2 Energy Gun 9 | . 6 14 9 Ballistic Gun 7 | . 10 . 7 Special Weapon 2 | . . . 3 Peak Build Rating 15 | 6 9 9 15 Average Rating 10 | 5 6 9 12 On Entrance 6 | . 6 9 9 Avg Prop Armor Cover (%) 9 | 12 . 9 3 Naked Turns . | . . . . Heaviest Build 17 | 14 14 8 17 Greatest Support 40 | 40 40 8 40 Greatest Overweight (x) 4 | . 1 2 4 Average Overweight (x) . | . . . . Largest Inventory Capacity 8 | 8 8 8 8 Average Capacity 7 | 7 8 8 8 Most Carried 8 | 7 8 8 8 Average Carried 7 | 3 7 7 7 Final Capacity 8 | 8 8 8 8 Final Carried 8 | 7 8 8 7 Class Distribution -------------------- 52% | Scavenger-Mutant 32% | Mutant 15% | Scavenger-Sprinter Dominant Class ---------------- Mutant | -10/Materials Mutant | -10/Mines Scavenger-Mutant | -9/Materials Resources | -11 -10 -10 -9 ----------- Run | Yrd Mat Min Mat Matter Collected 833 | 376 88 10 359 Remotely . | . . . . Salvage Created 1513 | 236 73 121 1083 Parts 103 | 12 5 6 80 Haulers Intercepted . | . . . . Recyclers Shooed . | . . . . Parts Field Recycled . | . . . . Retrieved Matter . | . . . . Parts Self-Destructed . | . . . . Prevented . | . . . . Parts Restored . | . . . . Kills | -11 -10 -10 -9 ------- Run | Yrd Mat Min Mat Combat Hostiles Destroyed 28 | . 1 2 25 Guns 21 | . 1 2 18 AOE 6 | . . . 6 Classes Destroyed 9 | 3 2 . 4 Worker 2 | 2 . . . Builder 2 | . . . 2 Tunneler 5 | 5 . . . Recycler 2 | 1 . 1 . Operator 1 | . . . 1 Watcher 3 | . 2 . 1 Swarmer 10 | . 1 2 7 Grunt 12 | . . . 12 Sentry 6 | . . . 6 Best Kill Streak 7 | 7 1 3 5 Combat Bots Only 4 | . 1 2 4 Max Kills in Single Turn 3 | 1 1 1 3 Gunslinging . | . . . . Exploded 2 | . . . 2 Melee . | . . . . Uniques/NPCs Destroyed . | . . . . Combat | -11 -10 -10 -9 -------- Run | Yrd Mat Min Mat Hostile Shots Fired 187 | . 7 7 173 Missed 62 | . 4 2 56 Hits 125 | . 3 5 117 Projectile 125 | . 3 5 117 Critical Strikes 5 | . . . 5 Damage Taken 1791 | . 26 38 1727 Core 423 | . . 21 402 Absorbed by Shields . | . . . . Core Remaining (%) 95 | 100 . 91 . Volleys Fired 124 | 16 5 8 95 Largest 2 | 2 2 1 2 Hottest 140 | 40 70 45 140 Shots Fired 209 | 32 8 8 161 Gun 194 | 32 8 8 146 Cannon . | . . . . Launcher 3 | . . . 3 Special 12 | . . . 12 Kinetic 93 | 32 4 . 57 Thermal 51 | . 2 . 49 Explosive . | . . . . Electromagnetic 65 | . 2 8 55 Robot Hit Streak 15 | 8 6 4 15 Robot Miss Streak 5 | 2 2 2 5 Penetration Max . | . . . . Secondary Targets . | . . . . Shots Hit Robots 135 | 19 5 6 105 Core Hits 75 | 9 4 4 58 Critical Kills . | . . . . Critical Parts Destroyed 1 | . . . 1 Critical Strikes 2 | . 1 . 1 Burn 1 | . 1 . . Destroy 1 | . . . 1 Melee Attacks . | . . . . Impact . | . . . . Slashing . | . . . . Piercing . | . . . . Sneak Attacks . | . . . . Combat Hostiles . | . . . . Follow-up Attacks . | . . . . Damage Inflicted 2136 | 237 66 141 1692 Guns 1778 | 237 66 98 1377 Cannons . | . . . . Explosions 358 | . . 43 315 Melee . | . . . . Ramming . | . . . . Kinetic 576 | 237 21 . 318 Thermal 503 | . 25 43 435 Explosive . | . . . . Electromagnetic 1057 | . 20 98 939 Impact . | . . . . Slashing . | . . . . Piercing . | . . . . Highest Corruption 25 | . . . 25 Average Corruption 22 | . . . 22 Corruption Purged . | . . . . Corruption Blocked . | . . . . Effects 45 | . . . 45 Message Errors 5 | . . . 5 Matter Fused 13 | . . . 13 Heat Flow Errors 7 | . . . 7 Energy Discharges 6 | . . . 6 Parts Rejected 2 | . . . 2 Data Loss (minor) 1 | . . . 1 Data Loss (major) 2 | . . . 2 Misfires 4 | . . . 4 Misdirections 1 | . . . 1 Weapon Failures 4 | . . . 4 Overload Shots . | . . . . Overflow Damage 40 | . . . 40 Projectiles . | . . . . Explosions 40 | . . . 40 Melee . | . . . . Knockbacks . | . . . . Impact . | . . . . Kinetic . | . . . . Secondary . | . . . . Self-Inflicted Damage 58 | . . . 58 Shots 2 | . . . 2 Rammed . | . . . . Targets Rammed . | . . . . Kicked . | . . . . Crushed . | . . . . Highest Temperature 330 | . 50 . 330 Average Temperature 92 | . 24 . 94 Received Heat Transfer 759 | . . . 759 Effects 4 | . . . 4 Shutdowns 1 | . . . 1 Energy Bleed 2 | . . . 2 Damage (minor) 1 | . . . 1 Siege Activations . | . . . . Martial Activations . | . . . . Shielding Activations . | . . . . Robots Disrupted . | . . . . Combat Hostiles . | . . . . Robots Corrupted 1 | . . . 1 Combat Hostiles 1 | . . . 1 Parts Fried 5 | . . . 5 Impact Corruptions . | . . . . Robots Melted . | . . . . Combat Hostiles . | . . . . Parts Melted 1 | . . . 1 Heat Transferred 998 | . 148 50 800 Parts Sabotaged . | . . . . Parts Stolen . | . . . . Parts Stripped . | . . . . Power Chain Reactions 5 | . . 1 4 Alert | -11 -10 -10 -9 ------- Run | Yrd Mat Min Mat Maximum Alert Level 1 | . . . 1 Low Security (%) 79 | 100 100 100 71 Level 1 20 | . . . 28 Level 2 . | . . . . Level 3 . | . . . . Level 4 . | . . . . Level 5 . | . . . . High Security . | . . . . Max Security . | . . . . Peak Influence 269 | 10 30 47 269 Initial 18 | . . 1 18 Average 102 | 1 9 29 139 Influence Increases 909 | 40 62 66 741 Destroy 0b10 Robot/C 560 | . 20 40 500 Destroy 0b10 Robot/NC 75 | 40 10 5 20 Destroy Leader 146 | . 14 . 132 Successful Hack 41 | . 18 . 23 Disable Machine 30 | . . 15 15 Destroy Structure 27 | . . 6 21 Partial Spotted 30 | . . . 30 Influence Decreases 803 | 40 57 24 682 Entered New Map 33 | . . 4 29 Time Decay 505 | 40 57 20 388 Lost Part 180 | . . . 180 Purge Threat 85 | . . . 85 Squads Dispatched 2 | . . . 2 Investigation . | . . . . Extermination . | . . . . Reinforcement 2 | . . . 2 Assault . | . . . . Garrison . | . . . . Intercept . | . . . . Searches Triggered . | . . . . Construction Impeded 1 | . . . 1 Haulers Reinforced . | . . . . Active Scanning Responses . | . . . . Cargo Convoy Interrupts . | . . . . Stealth | -11 -10 -10 -9 --------- Run | Yrd Mat Min Mat Distress Signals 3 | . . . 3 Communications Jammed . | . . . . Distress Signals . | . . . . Times Spotted 43 | . 7 3 33 Peak Tracking Total 5 | . 3 2 5 Tactical Retreats . | . . . . Traps | -11 -10 -10 -9 ------- Run | Yrd Mat Min Mat Traps Triggered . | . . . . Indirectly . | . . . . Trap Hack Attempts . | . . . . Triggered . | . . . . Disarmed . | . . . . Reprogrammed . | . . . . Reused . | . . . . Traps Extracted . | . . . . Installed . | . . . . Triggered . | . . . . Machines | -11 -10 -10 -9 ---------- Run | Yrd Mat Min Mat Machines Disabled 2 | . . 1 1 Max in Single Turn 1 | . . 1 1 Machines Repaired . | . . . . Machines Dismantled . | . . . . Machines Sabotaged . | . . . . Overloaded Fab Kills . | . . . . Hacking | -11 -10 -10 -9 --------- Run | Yrd Mat Min Mat Machines Accessed 10 | . 3 . 7 Terminals 9 | . 3 . 6 Fabricators . | . . . . Repair Stations . | . . . . Recycling Units . | . . . . Scanalyzers 1 | . . . 1 Garrison Access . | . . . . Total Hacks 25 | . 5 . 20 Successful 14 | . 4 . 10 Failed 11 | . 1 . 10 Catastrophic 4 | . . . 4 Database Lockouts . | . . . . Manual 8 | . 1 . 7 Terminals 16 | . 5 . 11 Fabricators . | . . . . Repair Stations . | . . . . Recycling Units . | . . . . Scanalyzers 9 | . . . 9 Garrison Access . | . . . . Terminal Hacks 7 | . 4 . 3 Robot Analysis 1 | . 1 . . Prototype ID Bank 1 | . . . 1 Branch Access Points 1 | . 1 . . Unreport Threat 1 | . . . 1 Registered Components 1 | . . . 1 Zone Layout 2 | . 2 . . Fabricator Hacks . | . . . . Repair Station Hacks . | . . . . Recycling Unit Hacks . | . . . . Scanalyzer 7 | . . . 7 Insert Component 1 | . . . 1 Analyze 1 | . . . 1 Retrieve Study 5 | . . . 5 Garrison Access Hacks . | . . . . Unauthorized Hacks . | . . . . Terminals . | . . . . Fabricators . | . . . . Repair Stations . | . . . . Recycling Units . | . . . . Scanalyzers . | . . . . Garrison Access . | . . . . Data Cores Recovered . | . . . . Used . | . . . . Hacking Detections 8 | . 2 . 6 Full Trace Events . | . . . . Feedback Events . | . . . . Feedback Blocked . | . . . . Robot Schematics Acquired . | . . . . Robots Built . | . . . . Authchips . | . . . . Time . | . . . . Total Robot Build Rating . | . . . . Part Schematics Acquired 1 | . . . 1 Parts Built . | . . . . Authchips . | . . . . Time . | . . . . Total Part Build Rating . | . . . . Part Studies Acquired 5 | . . . 5 Parts Repaired . | . . . . Time . | . . . . Parts Recycled . | . . . . Recycled Matter . | . . . . Retrieved Matter . | . . . . Retrieved Components . | . . . . Parts Scanalyzed 1 | . . . 1 Part Schematics Acquired 1 | . . . 1 Parts Damaged . | . . . . Bothacking | -11 -10 -10 -9 ------------ Run | Yrd Mat Min Mat Used RIF Installer . | . . . . Robots Hacked . | . . . . Non-combat . | . . . . Combat . | . . . . Robot Hacks Applied . | . . . . Relay Couplers Released . | . . . . Fabnet Peak Effective % . | . . . . Robots Rewired . | . . . . Allies Hacked . | . . . . Hacks Repelled . | . . . . Allies | -11 -10 -10 -9 -------- Run | Yrd Mat Min Mat Total Allies . | . . . . Largest Group . | . . . . Highest-Rated Group . | . . . . Highest-Rated Ally . | . . . . Total Orders . | . . . . Ally Attacks . | . . . . Total Damage . | . . . . Kills . | . . . . Allies Corrupted . | . . . . Allies Melted . | . . . . Intel | -11 -10 -10 -9 ------- Run | Yrd Mat Min Mat Active Infowar (turns) . | . . . . Robot Analysis Total 1 | . 1 . . Derelict Logs Recovered 1 | . . 1 . Drone Launches . | . . . . Drone Recoveries . | . . . . Exploration | -11 -10 -10 -9 ------------- Run | Yrd Mat Min Mat Turns Passed 1362 | 183 151 55 973 Spaces Moved 1025 | 72 221 69 663 Core 10 | 2 . 4 4 Treads 74 | 53 21 . . Legs 375 | . . . 375 Wheels 17 | 17 . . . Hover . | . . . . Flight 549 | . 200 65 284 Fastest Speed 31 | 50 37 37 31 Average Speed 77 | 142 50 51 81 Slowest Speed 250 | 160 160 150 250 Overloaded Moves . | . . . . Propulsion Burnouts . | . . . . Robots Hopped 1 | . . 1 . Potential Cave-ins 2 | . . . 2 Cave-ins Triggered 1 | . . . 1 Exploration Rate (%) 31 | 6 44 20 55 Regions Visited 3 Branch Regions 1 Pre-discovered Areas . | . . . . Known Exits Taken 2 | . 1 1 . Unknown Exits Taken 1 | 1 . . . Scrap Searched 1 | . . 1 . Spaces Dug 12 | . . . 12 Terrain Destroyed 28 | . . 6 22 Melee . | . . . . Projectile 12 | . . . 12 AOE 16 | . . 6 10 Terrain Rammed . | . . . . Walls Destroyed . | . . . . Machines Disabled . | . . . . Actions | -11 -10 -10 -9 --------- Run | Yrd Mat Min Mat Total 1371 | 116 257 79 919 Wait 105 | 15 2 . 88 Move 1020 | 71 220 66 663 Hop 1 | . . 1 . Pick Up 31 | 6 8 1 16 Fast Attach 28 | 6 4 . 18 Attach 15 | . 3 . 12 Detach 4 | . 2 . 2 Swap 13 | 2 1 1 9 Drop 30 | . 12 2 16 Fire 124 | 16 5 8 95 Melee . | . . . . Ram . | . . . . Kick . | . . . . Crush . | . . . . Escape Stasis . | . . . . Rewire . | . . . . Trap . | . . . . Miscellaneous . | . . . . Route ------- -11/Scrapyard -10/Materials (discovered 2 exits: *Mat / *Min) -10/Mines -9/Materials (discovered 1 exit: [*Mat]) History --------- Turn | Location | Event 2 | -11/Scrapyard | Met Revision 17 46 | -11/Scrapyard | Discovered new exit (range 15) 184 | -11/Scrapyard | Entered Materials 291 | -10/Materials | Identified exit to Mines 296 | -10/Materials | Discovered new exit (range 12) 316 | -10/Materials | Build established: Mutant 335 | -10/Materials | Entered Mines 341 | -10/Mines | Identified exit to Materials 390 | -10/Mines | Entered Materials 390 | -9/Materials | Evolved 2 slots: Propulsion x2 474 | -9/Materials | Discovered new exit (range 4) 620 | -9/Materials | System corruption reached 10% 664 | -9/Materials | Lost 6 parts (4n2w) 756 | -9/Materials | Core integrity fell below 50% 788 | -9/Materials | Lost 7 parts (1p4n2w) 923 | -9/Materials | Crushed by falling debris 988 | -9/Materials | Build established: Scavenger-Mutant 1335 | -9/Materials | Core integrity fell below 20% 1363 | -9/Materials | Destroyed by Y-45 Defender with Beam Rifle Last Messages --------------- Acquired Imp. Ion Engine. System corrupted: Matter fused (-10). U-05 Engineer works on Atomic Centrifuge. R-06 Scavenger collects Structural Scanner. System corrupted: Matter fused (-8). U-05 Engineer works on Atomic Centrifuge. System corrupted: Lgt. Assault Rifle+ jammed. Y-45 Defender destroyed. 3XSEUS3MGQE / VSS77IFSY W-16 Scout sends out distress signal. System corrupted: Energy discharge (-72). W-16 Scout sends out distress signal. Critical hit (Burn: +37). Aluminum Leg+ destroyed. Y-45 Defender destroyed. System corrupted: Substantial component data lost. K-01 Serf collects debris. Lgt. Assault Rifle+ destroyed. K-01 Serf collects debris. Map ----- +----------------------------------------------------+ | ????????????????????????????????????????????????? | | ????????????????????????????????????????????????? | | ????????????????????????????????????????????????? | | ????????????????????????????????????????????????? | | ????????????????????????????????????????????????? | | ????????????????????????????????????????????????? | | ????????????????????????????????????????????????? | | ????????????????????????????????????????????????? | | ????????????????????????????????????????????????? | | ????????????????????????????????????????????????? | | ????????????????????? ????????????????????????? | | ???????????????????? ????????????????????????? | | ???????????????????? ????????????????????????? | | ???????????????????? ????????????????????????? | | ???????????????????? ????????????????????????? | | ????????????????????# ?????????????%??????????? | | ????????????????????# ????????????????????????? | | ????????????????????# #???????????????????????? | | ????????????????????# #???????????????????????? | | ????????????????????# #???????????????????????? | | ????????????????????# #????###????????????????? | | ????????????????????# ######*###??????????????? | | ????????????????!???# # !%[ #??????????????? | | ???????????# ??????# # !!==! #??????????????? | | ???????????# !![!#[ # !== #??????????????? | | ???????????# w/! Y@ !== ########?????### | | ????????????""" !# k # # #??####%# | | ????????????"T??????# # """ # #??#= [ # | | ????????????????????# # m """ *# """ ####*![=# | | ????????????????????# # """ # """ + # ![# | | ????????????????????# # # """ ## # ! # | | ????????????????????# #####+##+# ## # [# | | ????????????????????# #???# ####+#### # # | | ????????????????????# #???# # # | | ????????????????????# ????# # [ [# | | ????????????????????# ##### + # | | ???????????????????? ######### | | ???????????????????? # # | | ???????????????????? "T" # """ # | | ???????????????????? # """ # | | ???????????????????? "" # """ # | | ????????????????????? " # """ ] # | | ????????????????????? ^ ]]] / # | | ????????????????????? ]] # # | | ?????????????????????? ]]= # "" # | | ????????????????????? # Y" # | | ???????????????????# # "" # | | ??????????????????# # ! # | | #??????????????????# ######### | | #??????????????????+ #???????? | +----------------------------------------------------+ Best States ------------- Heat Dissipation 28 Energy Generation 14 Energy Capacity 280 Matter Stores 300 Matter Capacity 300 Sight Range 16 Terrain Scan Density 10 Evasion (%) 63 Targeting Accuracy 6 Recoil Reduction 2 Offensive Hacking 10 Item Schematics ----------------- Aluminum Leg | -9/Materials | Scanalyzed Robot Schematics ------------------ None Fabricated ------------ Nothing Repaired ---------- Nothing Studied --------- Aluminum Leg | -9/Materials | Hacked Lgt. Assault Rifle | -9/Materials | Hacked EMP Blaster | -9/Materials | Hacked Arm. Wheel | -9/Materials | Hacked Mining Laser | -9/Materials | Hacked Alien Tech Used ----------------- None Achievements -------------- None Challenges ------------ None Game ------ Seed FrostRelayClaws Manual? 0 Play Time 00:53:42 Cumulative 45.4 hours Start 2026.07.15 @ 17:52:07 End 2026.07.16 @ 10:24:12 Sessions 1 Manual Loads 0 Difficulty Rogue Special Mode None Game No. 59 Rogue 59 Adventurer 0 Explorer 0 Win Type - Total 0 Types 0/0/0/0/0/0/0/0/0/0 Lore% 39 Gallery% 29 Achievement% 27 Wizard Run 0 Options --------- Layout 1 ASCII 0 Keyboard 0 Movement Mouse Keybinds 0 Fullscreen 2 Font 18/SmallcapsGlow Map View 51x41 Zoom Use 0% Tactical HUD 0 Map Filters NONE Filters NONE Steam 1 RUN: ce68d718-e74a-4107-a5ff-a1e38a3c1599